bitfinex-derivatives/quotes_SOLF0:USTF0_20250124
["timestamp","ask_amount","ask_price","bid_price","bid_amount"]
[1737678688091,3.9043,256.09,256.07,0.02804341]
[1737678689490,0.0254779,256.12,256.07,0.02804341]
[1737678689686,3.904,256.11,256.07,0.02804341]
[1737678689893,0.0254779,256.12,256.07,0.02804341]
[1737678691096,11.73,256.09,255.92,2.5027]
[1737678691289,9.5207708,256.11,255.84,1.2273]
[1737678691290,9.5207708,255.98,255.84,1.2273]
[1737678691494,9.5207708,255.98,255.84,3.7979]
[1737678692397,0.02508919,255.94,255.88,0.0272298]
[1737678692896,9.5207708,255.9,255.88,0.0272298]
[1737678693092,9.5207708,255.9,255.73,9.5207708]
[1737678693093,3.9083,255.83,255.73,6.4519]
[1737678693299,9.5207708,255.85,255.73,2.5422]
[1737678693598,9.5207708,255.81,255.73,6.4518]
[1737678693898,9.5207708,255.85,255.73,2.5422]
[1737678694199,0.02866022,255.82,255.76,0.02566996]
[1737678694393,9.5207708,255.89,255.73,2.5422]
[1737678694594,0.02871199,255.82,255.76,0.02673391]
[1737678694795,0.02871199,255.82,255.8,3.9086]
[1737678694993,0.02871199,255.82,255.76,0.02673391]
[1737678695187,0.02871199,255.82,255.78,3.9089]
[1737678696194,0.02871199,255.82,255.76,3.93593391]
[1737678696395,0.02871199,255.82,255.76,0.02673391]
[1737678697299,0.02871199,255.82,255.78,3.9089]
[1737678697597,0.02871199,255.82,255.76,0.02673391]
[1737678698000,9.5207708,255.81,255.76,0.02673391]
[1737678698493,9.5207708,255.77,255.76,0.02673391]
[1737678698691,3.9093,255.76,255.67,7.88357957]
[1737678698999,9.5207708,255.77,255.67,7.88357957]
[1737678699197,9.5207708,255.81,255.67,7.88357957]
[1737678699899,0.02835586,255.77,255.71,0.02544035]
[1737678700099,9.5207708,255.94,255.76,9.5207708]
[1737678700296,9.5207708,255.98,255.8,9.5207708]
[1737678700703,9.5207708,255.98,255.84,9.5207708]
[1737678701301,0.02655951,255.94,255.88,0.02572465]
[1737678701705,0.02655951,255.94,255.92,3.9068]
[1737678702102,9.5207708,256.06,255.89,1.3173]
[1737678702400,9.5207708,256.06,255.89,2.6283]
[1737678702805,9.5207708,256.06,255.94,3.9065]
[1737678703397,0.02712404,256.03,255.97,0.02674428]
[1737678708216,0.02712404,256.03,255.97,3.93274428]
[1737678709111,0.02712404,256.03,255.97,0.02674428]
[1737678710611,3.9058,256.0,255.97,0.02674428]
[1737678710916,0.02712404,256.03,255.97,0.02674428]
[1737678711115,3.9058,255.99,255.97,0.02674428]
[1737678714313,0.02712404,256.03,255.97,0.02674428]
[1737678716114,3.9059,255.98,255.97,0.02674428]
[1737678717420,9.5207708,256.02,255.84,12.1301708]
[1737678717622,3.9067,255.93,255.84,12.1301708]
[1737678718022,3.9067,255.93,255.86,3.9076]
[1737678718222,3.9065,255.95,255.84,12.1301708]
[1737678718522,3.9065,255.95,255.87,0.02606077]
[1737678718523,0.02873704,255.92,255.87,0.02606077]
[1737678718716,0.02873704,255.92,255.88,3.9073]
[1737678718921,0.02873704,255.92,255.87,0.02606077]
[1737678720925,3.9074,255.88,255.87,0.02606077]
[1737678721126,0.02873704,255.92,255.87,0.02606077]
[1737678722528,0.02873704,255.92,255.91,3.907]
[1737678723125,0.02873704,255.92,255.89,3.9071]
[1737678723921,0.02873704,255.92,255.88,3.9074]
[1737678724122,0.02873704,255.92,255.87,0.02606077]
[1737678725029,3.9073,255.89,255.87,0.02606077]
[1737678727825,0.02873704,255.92,255.89,3.9073]
[1737678728130,0.02873704,255.92,255.87,0.02606077]
[1737678728530,0.02873704,255.92,255.89,3.9072]
[1737678731229,0.02873704,255.92,255.89,9.5207708]
[1737678731435,3.9057,256.0,255.89,9.5207708]
[1737678731929,3.9057,256.0,255.88,3.8938]
[1737678731930,9.5207708,256.1,255.93,9.5207708]
[1737678732128,3.9042,256.1,255.97,9.5207708]
[1737678732332,3.9042,256.1,255.98,2.6366]
[1737678732532,0.02971405,256.06,256.01,3.93407487]
[1737678735037,3.905,256.04,256.01,0.02877487]
[1737678735237,9.55048485,256.06,256.01,0.02877487]
[1737678735437,9.5207708,256.02,255.89,2.5645]
[1737678735638,3.906,255.98,255.91,3.907]
[1737678736639,0.02953937,255.97,255.92,3.93201258]
[1737678737432,0.02953937,255.97,255.92,0.02521258]
[1737678738431,3.9064,255.95,255.92,0.02521258]
[1737678738637,0.02953937,255.97,255.92,0.02521258]
[1737678738836,3.9063,255.96,255.92,0.02521258]
[1737678739040,0.02953937,255.97,255.92,0.02521258]
[1737678739740,3.9066,255.94,255.92,0.02521258]
[1737678741142,3.9073,255.89,255.83,5.1565]
[1737678741939,9.5207708,255.94,255.81,3.9084]
[1737678742139,3.9076,255.87,255.77,9.5207708]
[1737678742339,3.9076,255.87,255.85,0.02545647]
[1737678742640,3.9076,255.87,255.83,0.02963715]
[1737678742841,0.02940348,255.89,255.83,0.02963715]
[1737678743539,0.02940348,255.89,255.85,3.9079]
[1737678744041,0.02940348,255.89,255.86,3.9077]
[1737678744238,0.02940348,255.89,255.85,9.5207708]
[1737678745244,0.02940348,255.89,255.87,3.9076]
[1737678747546,0.02940348,255.89,255.84,1.2862]
[1737678747745,0.02940348,255.89,255.85,3.9079]
[1737678748044,0.02940348,255.89,255.84,1.2862]
[1737678748444,0.02940348,255.89,255.83,0.02963715]
[1737678748946,3.93670348,255.89,255.83,3.93783715]
[1737678749245,0.02940348,255.89,255.83,0.02963715]
[1737678750546,0.02940348,255.89,255.85,3.9079]
[1737678750845,0.02940348,255.89,255.83,0.02963715]
[1737678751347,3.9078,255.86,255.83,0.02963715]
[1737678751646,0.02940348,255.89,255.83,0.02963715]
[1737678752046,3.9081,255.84,255.83,0.02963715]
[1737678754852,9.5207708,255.84,255.69,1.3344]
[1737678755046,9.5207708,255.73,255.59,10.28859465]
[1737678755249,3.9099,255.72,255.66,3.9108]
[1737678755442,3.9099,255.72,255.59,12.87819465]
[1737678755748,3.9099,255.72,255.59,2.5896]
[1737678755942,0.02665682,255.68,255.64,3.911]
[1737678756850,0.02665682,255.68,255.63,0.02960837]
[1737678757945,16.05076083,255.84,255.63,0.02960837]
[1737678758151,16.05076083,255.84,255.62,15.26902225]
[1737678758747,19.95896083,255.84,255.62,15.26902225]
[1737678759050,16.05076083,255.84,255.62,15.26902225]
[1737678759247,9.51e-06,255.76,255.74,3.9095]
[1737678759452,0.78173858,255.84,255.75,2.5773]
[1737678759754,15.26902225,255.93,255.75,2.5773]
[1737678760255,31.50895692,255.98,255.76,15.26902225]
[1737678760447,0.02923408,255.87,255.81,0.02719361]
[1737678760648,0.02923408,255.87,255.76,15.26902225]
[1737678760844,0.02923408,255.87,255.81,0.02924076]
[1737678762255,0.02923408,255.87,255.81,3.93764076]
[1737678762749,0.02923408,255.87,255.81,0.02924076]
[1737678765054,3.908,255.85,255.81,0.02924076]
[1737678765657,3.9081,255.84,255.81,0.02924076]
[1737678765859,0.02923408,255.87,255.81,0.02924076]
[1737678766255,3.9082,255.83,255.81,0.02924076]
[1737678771055,14.30573408,255.87,255.67,3.9315]
[1737678771254,15.26902225,255.83,255.67,3.9315]
[1737678772162,3.9096,255.75,255.69,3.9103]
[1737678772361,3.9096,255.75,255.72,0.0265028]
[1737678772558,0.02918348,255.78,255.72,0.0265028]
[1737678772758,3.9096,255.74,255.72,0.0265028]
[1737678775956,3.9111,255.65,255.6,3.9116]
[1737678776162,15.26902225,255.69,255.47,3.46]
[1737678776364,15.26902225,255.69,255.52,1.342]
[1737678776558,3.9117,255.6,255.53,3.9127]
[1737678776763,15.26902225,255.61,255.48,2.6092]
[1737678777165,0.02734728,255.57,255.52,0.0259342]
[1737678777561,3.9124,255.56,255.52,0.0259342]
[1737678777870,0.02734728,255.57,255.52,0.0259342]
[1737678778868,0.02734728,255.57,255.54,3.9125]
[1737678779069,0.02734728,255.57,255.52,0.0259342]
[1737678779772,0.02734728,255.57,255.55,3.9124]
[1737678780267,0.02734728,255.57,255.53,3.9127]
[1737678780466,0.02734728,255.57,255.52,0.0259342]
[1737678781470,15.26902225,255.56,255.52,0.0259342]
[1737678781767,15.26902225,255.56,255.39,2.59]
[1737678782068,15.26902225,255.52,255.39,2.59]
[1737678782372,3.9131,255.52,255.39,2.59]
[1737678782771,15.26902225,255.56,255.39,2.59]
[1737678782979,0.02918163,255.48,255.43,0.025484]
[1737678784473,3.9141,255.45,255.43,0.025484]
[1737678784969,15.26902225,255.46,255.23,132.9428113]
[1737678785169,15.26902225,255.42,255.26,2.5147]
[1737678785373,15.26902225,255.42,255.27,0.69848573]
[1737678785575,15.26902225,255.42,255.35,3.9155]
[1737678785972,15.26902225,255.51,255.29,15.26902225]
[1737678786173,15.26902225,255.56,255.36,0.02611584]
[1737678786373,3.913,255.52,255.36,0.69757145]
[1737678786567,15.26902225,255.52,255.33,3.46]
[1737678786771,15.26902225,255.48,255.34,0.69777368]
[1737678786973,15.26902225,255.56,255.26,2.5147]
[1737678786974,15.26902225,255.44,255.26,2.5147]
[1737678787171,15.26902225,255.44,255.27,0.6983105]
[1737678787370,0.02961566,255.38,255.32,0.02540386]
[1737678787777,0.02961566,255.38,255.36,3.9153]
[1737678788280,0.02961566,255.38,255.32,3.94130386]
[1737678788477,0.02961566,255.38,255.32,0.02540386]
[1737678790077,3.9158,255.34,255.32,0.02540386]
[1737678791170,15.26902225,255.36,255.2,3.8356]
[1737678791373,15.26902225,255.32,255.2,3.8356]
[1737678792079,3.9162,255.31,255.22,3.9175]
[1737678792279,15.26902225,255.32,255.2,2.5561]
[1737678792280,0.02674535,255.29,255.23,0.0280499]
[1737678792778,15.26902225,255.24,255.11,2.5483]
[1737678793777,15.26902225,255.24,255.14,3.9186]
[1737678793975,0.0265204,255.2,255.15,0.0299335]
[1737678795484,0.0265204,255.2,255.18,3.9181]
[1737678795683,15.26902225,255.33,255.15,0.0299335]
[1737678795884,15.26902225,255.37,255.15,15.29895575]
[1737678796184,15.26902225,255.41,255.15,15.26902225]
[1737678796884,0.02579549,255.31,255.25,0.02638439]
[1737678797384,0.02861164,255.31,255.25,0.02655275]
[1737678798788,0.02861164,255.31,255.26,3.9168]
[1737678798988,0.02861164,255.31,255.25,0.02655275]
[1737678799489,0.02861164,255.31,255.27,3.9167]
[1737678800183,0.02861164,255.31,255.29,3.9164]
[1737678800385,15.26902225,255.45,255.25,0.02655275]
[1737678800591,15.26902225,255.45,255.24,1.2981]
[1737678800888,3.9148,255.4,255.32,3.916]
[1737678801088,15.26902225,255.45,255.25,1.3518]
[1737678801290,15.26902225,255.49,255.27,15.26902225]
[1737678801585,0.02932828,255.41,255.35,0.02742778]
[1737678801784,0.02932828,255.41,255.35,3.94292778]
[1737678802190,0.02932828,255.41,255.35,0.02742778]
[1737678802490,0.02932828,255.41,255.39,3.9149]
[1737678803390,0.02932828,255.41,255.36,2.548]
[1737678803884,0.02932828,255.41,255.39,3.9148]
[1737678804085,15.26902225,255.59,255.36,2.548]
[1737678804290,15.26902225,255.59,255.37,15.26902225]
[1737678804590,3.9125,255.56,255.47,3.9136]
[1737678804988,3.913,255.52,255.43,3.9142]
[1737678805189,0.02949441,255.54,255.49,0.02708308]
[1737678805388,15.26902225,255.54,255.36,2.548]
[1737678805588,15.29670776,255.54,255.49,0.02667387]
[1737678805889,15.26902225,255.54,255.38,3.915]
[1737678806190,3.9141,255.45,255.36,6.4633]
[1737678806387,0.02892186,255.49,255.43,0.0274967]
[1737678806581,15.26902225,255.55,255.43,0.0274967]
[1737678806786,0.0281893,255.49,255.43,0.0274967]
[1737678807285,0.0281893,255.49,255.45,3.914]
[1737678807486,0.0281893,255.49,255.43,0.0274967]
[1737678808288,0.0281893,255.49,255.43,3.9416967]
[1737678808584,0.0281893,255.49,255.43,0.0274967]
[1737678809393,3.9141,255.45,255.43,0.0274967]
[1737678809691,0.0281893,255.49,255.43,0.0274967]
[1737678809892,3.9141,255.45,255.43,0.0274967]
[1737678812493,19.18312225,255.45,255.43,0.0274967]
[1737678813591,15.26902225,255.45,255.29,1.3291]
[1737678813787,3.9155,255.36,255.29,1.3291]
[1737678814194,15.26902225,255.4,255.28,1.3333]
[1737678814394,15.26902225,255.4,255.22,2.5691]
[1737678814588,15.26902225,255.35,255.22,2.5691]
[1737678814893,0.0267154,255.34,255.28,0.02954879]
[1737678815092,3.9166,255.29,255.28,0.02954879]
[1737678815696,3.9163,255.31,255.28,0.02954879]
[1737678815896,0.0267154,255.34,255.28,0.02954879]
[1737678816195,3.9162,255.31,255.28,0.02954879]
[1737678816701,0.0267154,255.34,255.28,0.02954879]
[1737678817499,0.0267154,255.34,255.3,3.9163]
[1737678817690,0.0267154,255.34,255.28,0.02954879]
[1737678818194,3.9425154,255.34,255.28,0.02954879]
[1737678818491,0.0267154,255.34,255.28,0.02954879]
[1737678818793,3.9164,255.3,255.28,0.02954879]
[1737678819095,0.0267154,255.34,255.28,0.02954879]
[1737678819698,3.9161,255.32,255.28,0.02954879]
[1737678819888,0.0267154,255.34,255.28,0.02954879]
[1737678820397,15.26902225,255.49,255.28,15.29857104]
[1737678820597,15.26902225,255.49,255.28,15.26902225]
[1737678820798,15.26902225,255.49,255.24,15.26902225]
[1737678821096,15.26902225,255.49,255.28,15.26902225]
[1737678821293,15.26902225,255.45,255.24,15.26902225]
[1737678821599,0.02696063,255.37,255.32,0.02925182]
[1737678822194,3.94226063,255.37,255.32,0.02925182]
[1737678822394,0.02696063,255.37,255.32,0.02925182]
[1737678822798,3.9158,255.34,255.32,0.02925182]
[1737678823097,0.02696063,255.37,255.32,0.02925182]
[1737678823699,3.94236063,255.37,255.32,0.02925182]
[1737678824895,0.02696063,255.37,255.32,0.02925182]
[1737678825200,3.9158,255.34,255.32,0.02925182]
[1737678825699,0.02696063,255.37,255.32,0.02925182]
[1737678829002,0.02696063,255.37,255.35,3.9155]
[1737678831401,0.02696063,255.37,255.32,0.02925182]
[1737678833303,3.9154,255.36,255.32,0.02925182]
[1737678834707,3.94226063,255.37,255.32,0.02925182]
[1737678834904,0.02696063,255.37,255.32,0.02925182]
[1737678835110,2.6137,255.5,255.32,15.29827407]
[1737678835407,200.37522225,255.54,255.36,15.26902225]
[1737678835408,185.1062,255.54,255.36,15.26902225]
[1737678835708,185.1062,255.54,255.37,1.3421]
[1737678836007,3.9133,255.5,255.37,1.3421]
[1737678836408,0.02545668,255.46,255.41,0.02483083]
[1737678837209,3.9122,255.58,255.5,3.9132]
[1737678838010,3.913,255.52,255.44,3.9142]
[1737678838204,2.5193,255.61,255.4,15.26902225]
[1737678838404,2.5193,255.61,255.45,0.02810713]
[1737678838405,0.02934618,255.51,255.45,0.02810713]
[1737678838606,0.02934618,255.51,255.4,15.26902225]
[1737678838801,0.02934618,255.51,255.43,0.03007667]
[1737678839512,0.02934618,255.51,255.45,3.914]
[1737678840711,0.02934618,255.51,255.43,0.03007667]
[1737678842216,0.02934618,255.51,255.46,3.9138]
[1737678842403,0.02934618,255.51,255.43,0.03007667]
[1737678842805,3.9135,255.49,255.43,0.03007667]
[1737678843516,3.9138,255.47,255.43,0.03007667]
[1737678843711,0.02934618,255.51,255.43,0.03007667]
[1737678844309,3.9141,255.45,255.43,0.03007667]
[1737678846808,3.9139,255.46,255.43,0.03007667]
[1737678848414,3.914,255.45,255.43,0.03007667]
[1737678850614,3.9142,255.44,255.43,0.03007667]
[1737678851423,3.9151,255.38,255.32,3.9159]
[1737678851616,15.26902225,255.46,255.28,1.2824]
[1737678851816,15.26902225,255.42,255.28,1.2824]
[1737678852012,3.9158,255.34,255.28,1.2824]
[1737678852212,15.26902225,255.42,255.24,2.5377]
[1737678852715,0.02605019,255.36,255.3,0.02682609]
[1737678853315,0.02605019,255.36,255.3,3.94312609]
[1737678853622,0.02605019,255.36,255.3,0.02682609]
[1737678854117,0.02605019,255.36,255.33,3.9158]
[1737678854620,0.02605019,255.36,255.3,0.02682609]
[1737678854811,0.02605019,255.36,255.31,3.916]
[1737678855716,0.02605019,255.36,255.3,0.02682609]
[1737678858218,0.02605019,255.36,255.31,3.9162]
[1737678859022,0.02605019,255.36,255.32,3.916]
[1737678859223,0.02605019,255.36,255.3,0.02682609]
[1737678859625,0.02605019,255.36,255.35,3.9156]
[1737678862024,0.02605019,255.36,255.3,0.02682609]
[1737678862826,0.02605019,255.36,255.35,3.9156]
[1737678863026,15.26902225,255.49,255.3,0.02682609]
[1737678863226,15.26902225,255.49,255.29,0.69827381]
[1737678863724,2.78420728,255.48,255.29,0.69827381]
[1737678864021,2.78420728,255.47,255.29,0.69827381]
[1737678864226,3.9148,255.4,255.36,0.02621619]
[1737678864426,0.0247863,255.41,255.36,0.02621619]
[1737678865522,2.78420728,255.4,255.36,0.02621619]
[1737678865729,0.0247863,255.41,255.36,0.02621619]
[1737678865927,2.78567857,255.39,255.36,0.02621619]
[1737678866127,2.78567857,255.38,255.36,0.02621619]
[1737678866522,0.0247863,255.41,255.36,0.02621619]
[1737678866724,0.0247863,255.41,255.37,3.9152]
[1737678866919,0.0247863,255.41,255.36,0.02621619]
[1737678867119,2.78540059,255.4,255.36,0.02621619]
[1737678867328,2.78540059,255.4,255.38,3.915]
[1737678867528,2.78540059,255.4,255.36,0.02621619]
[1737678867724,0.0247863,255.41,255.36,0.02621619]
[1737678867925,3.9393863,255.41,255.36,0.02621619]
[1737678868326,0.0247863,255.41,255.36,0.02621619]
[1737678868530,3.9153,255.37,255.36,0.02621619]
[1737678869130,2.78615469,255.37,255.36,0.02621619]
[1737678870530,6.70145469,255.37,255.36,0.02621619]
[1737678871330,2.78615469,255.37,255.36,0.02621619]
[1737678871931,6.70145469,255.37,255.36,0.02621619]
[1737678873028,13.48171824,255.39,255.36,0.02621619]
[1737678873431,9.56661824,255.39,255.36,0.02621619]
[1737678873631,3.9151,255.38,255.36,0.02621619]
[1737678874127,3.9173,255.24,255.19,3.918]
[1737678874324,9.56661824,255.26,255.18,132.9428113]
[1737678874729,9.56661824,255.32,255.18,132.9428113]
[1737678875333,0.02801465,255.28,255.22,0.02812468]
[1737678876032,3.9174,255.24,255.22,0.02812468]
[1737678876236,1.56595271,255.23,255.22,0.02812468]
[1737678877833,9.56661824,255.23,255.22,0.02812468]
[1737678878130,11.13261103,255.23,255.22,0.02812468]
[1737678878334,11.13261103,255.23,255.22,0.00072437]
[1737678878633,11.13260204,255.23,255.02,9.56661824]
[1737678878829,1.5659838,255.22,255.07,2.5644]
[1737678879030,13.48401824,255.23,255.08,0.69965283]
[1737678879332,1.56611098,255.22,255.08,0.69965283]
[1737678879534,9.56661824,255.23,255.14,3.9187]
[1737678879735,0.02671415,255.18,255.14,3.9187]
[1737678880232,0.02671415,255.18,255.15,3.9186]
[1737678881533,0.02671415,255.18,255.12,0.02552229]
[1737678881735,3.9185,255.16,255.12,0.02552229]
[1737678881935,0.02671415,255.18,255.12,0.02552229]
[1737678883134,0.02671415,255.18,255.13,3.9189]
[1737678883642,0.02671415,255.18,255.16,3.9185]
[1737678885940,0.02671415,255.18,255.12,0.02552229]
[1737678888246,0.02671415,255.18,255.12,3.94462229]
[1737678888443,0.02671415,255.18,255.12,0.02552229]
[1737678889143,0.02671415,255.18,255.13,3.9189]
[1737678890742,9.56661824,255.27,255.12,0.02552229]
[1737678890951,10.81591824,255.31,255.14,9.56661824]
[1737678891142,1.56578606,255.3,255.15,0.69926129]
[1737678891347,3.9167,255.28,255.21,3.9176]
[1737678891741,10.81591824,255.31,255.16,1.3061]
[1737678891949,0.02482464,255.27,255.22,0.02604771]
[1737678892144,9.59144288,255.27,255.22,0.02604771]
[1737678892345,1.56604036,255.26,255.22,0.02604771]
[1737678892551,3.9173,255.24,255.22,0.02604771]
[1737678893046,3.917,255.26,255.22,0.02604771]
[1737678893245,0.02482464,255.27,255.22,0.02604771]
[1737678893750,0.02482464,255.27,255.24,3.9172]
[1737678893950,0.02482464,255.27,255.22,0.02604771]
[1737678894149,9.59144288,255.27,255.22,0.02604771]
[1737678894541,3.9173,255.24,255.22,0.02604771]
[1737678894945,9.59144288,255.27,255.22,0.02604771]
[1737678895952,3.9171,255.25,255.22,0.02604771]
[1737678897252,9.59144288,255.27,255.22,0.02604771]
[1737678897552,3.9174,255.23,255.22,0.02604771]
[1737678898254,13.48401824,255.23,255.22,0.02604771]
[1737678900853,3.9185,255.16,255.13,0.69954073]
[1737678901056,9.56661824,255.23,255.12,1.2331]
[1737678901655,3.9185,255.16,255.12,5.1522]
[1737678901949,3.9185,255.16,255.11,2.5904]
[1737678901950,3.9185,255.16,255.11,1.31105001]
[1737678902151,3.919,255.13,255.11,0.02675001]
[1737678903046,13.48541824,255.15,255.11,0.02675001]
[1737678903245,0.0280929,255.17,255.11,0.02675001]
[1737678904555,3.919,255.13,255.11,0.02675001]
[1737678905054,3.9186,255.16,255.11,0.02675001]
[1737678905256,0.0280929,255.17,255.11,0.02675001]
[1737678905954,9.56661824,255.15,255.11,0.02675001]
[1737678907049,3.9191,255.12,255.11,0.02675001]
[1737678908657,9.56661824,255.15,255.11,0.02675001]
[1737678908851,185.1342929,255.17,255.11,0.02675001]
[1737678909458,185.1342929,255.17,255.15,3.9186]
[1737678909653,0.0280929,255.17,255.11,0.02675001]
[1737678909960,10.84451824,255.28,255.11,9.59336825]
[1737678910253,1.56598214,255.27,255.12,0.70010443]
[1737678910581,9.56661824,255.28,255.12,1.96860443]
[1737678911060,1.2313,255.34,255.17,0.02772977]
[1737678911061,0.02913055,255.23,255.17,0.02772977]
[1737678911257,3.9163,255.31,255.17,0.02772977]
[1737678911557,1.56567934,255.3,255.17,0.02772977]
[1737678911755,3.9163,255.31,255.17,0.02772977]
[1737678911962,4.63123737,255.35,255.24,3.9172]
[1737678912154,1.5655184,255.34,255.19,9.56661824]
[1737678912359,0.02611189,255.32,255.24,0.02756256]
[1737678912555,1.77520977,255.4,255.27,9.56661824]
[1737678912759,1.5652798,255.39,255.28,1.2325]
[1737678912962,1.5652798,255.38,255.28,1.2325]
[1737678913162,2.78141502,255.39,255.32,3.9159]
[1737678913461,2.78141502,255.39,255.33,1.3328]
[1737678913759,1.77520977,255.45,255.36,9.56661824]
[1737678913962,1.56500831,255.44,255.35,9.56661824]
[1737678914163,5.47940831,255.43,255.33,1.3328]
[1737678914460,1.56500831,255.42,255.33,1.3328]
[1737678914661,3.9144,255.43,255.33,1.3328]
[1737678914863,0.02819429,255.41,255.35,0.02618262]
[1737678916965,0.02819429,255.41,255.35,9.59280086]
[1737678917865,9.56661824,255.53,255.35,9.59280086]
[1737678918057,1.56500055,255.52,255.39,9.56661824]
[1737678918257,1.56500055,255.51,255.39,9.56661824]
[1737678918466,1.56500055,255.5,255.39,9.56661824]
[1737678918667,1.56500055,255.49,255.39,9.56661824]
[1737678918868,0.02950291,255.47,255.42,0.02911474]
[1737678919068,194.67281824,255.61,255.44,9.56661824]
[1737678919264,1.56457216,255.59,255.45,1.3329]
[1737678919463,1.56457216,255.58,255.45,1.3329]
[1737678919670,3.9125,255.55,255.45,1.3329]
[1737678920171,0.02677436,255.53,255.47,0.0269414]
[1737678920866,0.02677436,255.53,255.48,9.56661824]
[1737678921765,3.9117,255.6,255.48,9.56661824]
[1737678921968,14.99185223,255.65,255.48,9.56661824]
[1737678922467,9.56661824,255.65,255.48,9.56661824]
[1737678922770,3.9113,255.63,255.52,9.56661824]
[1737678923074,185.1062,255.7,255.57,9.56661824]
[1737678923261,9.56661824,255.73,255.58,1.2913]
[1737678923568,9.56661824,255.73,255.61,0.02890495]
[1737678923772,9.56661824,255.68,255.61,0.02890495]
[1737678923965,9.56661824,255.72,255.61,0.02890495]
[1737678924660,3.9113,255.63,255.53,1.2481]
[1737678924863,9.56661824,255.7,255.57,9.56661824]
[1737678925263,185.1062,255.71,255.57,9.56661824]
[1737678925967,0.02835467,255.67,255.61,0.02608995]
[1737678926269,3.93915467,255.67,255.61,0.02608995]
[1737678926971,0.02835467,255.67,255.61,9.59270819]
[1737678927170,0.02835467,255.67,255.62,1.348]
[1737678929368,0.02835467,255.67,255.61,0.02608995]
[1737678930472,3.9111,255.65,255.61,0.02608995]
[1737678930672,0.02835467,255.67,255.61,0.02608995]
[1737678931074,3.9111,255.64,255.61,0.02608995]
[1737678931373,0.02835467,255.67,255.61,0.02608995]
[1737678932869,0.02835467,255.67,255.63,15.2750978]
[1737678933073,1.3135,255.82,255.63,15.2750978]
[1737678933267,1.3135,255.82,255.67,15.2750978]
[1737678933468,3.909,255.78,255.68,2.5847]
[1737678933674,1.3135,255.82,255.68,2.5847]
[1737678934068,1.3135,255.82,255.72,0.02795966]
[1737678934471,15.2750978,255.79,255.72,0.02795966]
[1737678934768,15.2750978,255.79,255.59,17.8597978]
[1737678935572,15.2750978,255.79,255.59,2.5847]
[1737678935977,0.02774422,255.72,255.66,0.02498721]
[1737678936669,3.9107,255.67,255.66,0.02498721]
[1737678938974,3.9102,255.71,255.66,0.02498721]
[1737678939176,0.02774422,255.72,255.66,0.02498721]
[1737678942677,3.9104,255.69,255.66,0.02498721]
[1737678942882,0.02774422,255.72,255.66,0.02498721]
[1737678943782,3.9107,255.67,255.66,0.02498721]
[1737678944582,0.02774422,255.72,255.66,0.02498721]
[1737678946176,0.02774422,255.72,255.66,1.24568721]
[1737678946884,0.02774422,255.72,255.66,1.2111345]
[1737678947978,0.02774422,255.72,255.66,1.2389176]
[1737678950285,0.02774422,255.72,255.67,1.2205]
[1737678951685,20.70033179,255.87,255.67,1.2205]
[1737678951886,5.42523399,255.87,255.82,15.2750978]
[1737678952184,5.42523399,255.88,255.83,1.2268]
[1737678952985,5.44990116,255.88,255.83,1.25221172]
[1737678953589,5.44990116,255.88,255.83,0.02541172]
[1737678954291,6.62225656,255.87,255.83,0.02541172]
[1737678954590,2.71455656,255.87,255.83,0.02541172]
[1737678955388,2.71455656,255.86,255.83,0.02541172]
[1737678955894,2.71455656,255.85,255.83,0.02541172]
[1737678956488,2.71455656,255.84,255.83,0.02541172]
[1737678957794,5.44990116,255.88,255.83,0.02541172]
[1737678960395,3.9079,255.85,255.83,0.02541172]
[1737678965700,3.9081,255.84,255.83,0.02541172]
[1737678967600,0.02466717,255.88,255.75,2.21522314]
[1737678967903,188.8976,255.91,255.67,15.2750978]
[1737678968107,185.1062,255.9,255.67,15.2750978]
[1737678968500,185.1062,255.9,255.71,15.2750978]
[1737678968703,3.7914,255.91,255.71,15.2750978]
[1737678968704,3.9089,255.79,255.71,15.2750978]
[1737678969003,185.1062,255.89,255.71,15.2750978]
[1737678969205,0.02920336,255.78,255.72,0.02911476]
[1737678969408,185.1062,255.88,255.71,15.2750978]
[1737678969601,0.02567455,255.78,255.71,15.2750978]
[1737678969802,0.02567455,255.78,255.72,0.02986006]
[1737678970102,3.9093,255.76,255.72,0.02986006]
[1737678970310,0.02567455,255.78,255.72,0.02986006]
[1737678970609,3.9092,255.77,255.72,0.02986006]
[1737678971004,0.02567455,255.78,255.72,0.02986006]
[1737678972308,3.93467455,255.78,255.72,0.02986006]
[1737678973810,3.93467455,255.78,255.74,9.53156445]
[1737678977116,0.02567455,255.78,255.74,9.53156445]
[1737678980811,3.93467455,255.78,255.74,9.53156445]
[1737678983017,3.9092,255.77,255.74,9.53156445]
[1737678983218,0.02567455,255.78,255.74,9.53156445]